[Event "Titled Tuesday Blitz August 1 Late 2023"]
[White "Skytte, Rasmus"]
[Black "Papp, Levente"]
[WhiteFideId "1404210"]
[BlackFideId "751243"]
[WhiteElo "2336"]
[BlackElo "2680"]
[Result "0-1"]
[Round "5"]
[TimeControl "180+1"]
[Date "2023.08.01"]
[WhiteClock "0:00:06"]
[BlackClock "0:00:31"]
[Board "47"]

1. e4 {[%clk 0:02:59]}  e6 {[%clk 0:03:00]} 2. d4 {[%clk 0:02:58]}  d5 {[%clk 0:03:00]} 3. Nc3 {[%clk 0:02:55]}  Bb4 {[%clk 0:03:00]} 4. exd5 {[%clk 0:02:55]}  exd5 {[%clk 0:03:01]} 5. Bd3 {[%clk 0:02:54]}  Ne7 {[%clk 0:03:01]} 6. Nf3 {[%clk 0:02:54]}  O-O {[%clk 0:03:00]} 7. O-O {[%clk 0:02:54]}  Bf5 {[%clk 0:03:00]} 8. Re1 {[%clk 0:02:47]}  Nbc6 {[%clk 0:02:58]} 9. Bg5 {[%clk 0:02:40]}  f6 {[%clk 0:02:55]} 10. Bf4 {[%clk 0:02:31]}  Qd7 {[%clk 0:02:54]} 11. a3 {[%clk 0:02:26]}  Bxc3 {[%clk 0:02:52]} 12. bxc3 {[%clk 0:02:26]}  Rfe8 {[%clk 0:02:47]} 13. Rb1 {[%clk 0:02:23]}  b6 {[%clk 0:02:47]} 14. Qd2 {[%clk 0:02:14]}  Bxd3 {[%clk 0:02:42]} 15. Qxd3 {[%clk 0:02:09]}  Na5 {[%clk 0:02:33]} 16. h4 {[%clk 0:01:59]}  Nc4 {[%clk 0:02:25]} 17. h5 {[%clk 0:01:57]}  c6 {[%clk 0:02:10]} 18. h6 {[%clk 0:01:55]}  g6 {[%clk 0:02:07]} 19. Re2 {[%clk 0:01:48]}  Nf5 {[%clk 0:02:02]} 20. Rbe1 {[%clk 0:01:44]}  Kf7 {[%clk 0:01:57]} 21. Nh2 {[%clk 0:01:21]}  Rxe2 {[%clk 0:01:52]} 22. Rxe2 {[%clk 0:01:19]}  Re8 {[%clk 0:01:52]} 23. g4 {[%clk 0:01:10]}  Nfd6 {[%clk 0:01:45]} 24. g5 {[%clk 0:01:07]}  fxg5 {[%clk 0:01:06]} 25. Bxg5 {[%clk 0:01:03]}  Qf5 {[%clk 0:01:06]} 26. Rxe8 {[%clk 0:00:56]}  Qxg5+ {[%clk 0:01:03]} 27. Kh1 {[%clk 0:00:43]}  Kxe8 {[%clk 0:01:02]} 28. Qe2+ {[%clk 0:00:40]}  Kd8 {[%clk 0:01:00]} 29. Qe6 {[%clk 0:00:38]}  Qe7 {[%clk 0:00:57]} 30. Qg8+ {[%clk 0:00:37]}  Ne8 {[%clk 0:00:48]} 31. Nf3 {[%clk 0:00:33]}  Qe4 {[%clk 0:00:44]} 32. Qxh7 {[%clk 0:00:26]}  Qxf3+ {[%clk 0:00:44]} 33. Kg1 {[%clk 0:00:22]}  Qg4+ {[%clk 0:00:44]} 34. Kh2 {[%clk 0:00:18]}  Nd2 {[%clk 0:00:42]} 35. Qxa7 {[%clk 0:00:14]}  Nf1+ {[%clk 0:00:42]} 36. Kh1 {[%clk 0:00:14]}  Qh3+ {[%clk 0:00:42]} 37. Kg1 {[%clk 0:00:13]}  Nh2 {[%clk 0:00:31]} 38. Qb8+ {[%clk 0:00:11]}  Kd7 {[%clk 0:00:32]} 39. Qb7+ {[%clk 0:00:11]}  Nc7 {[%clk 0:00:31]} 40. h7 {[%clk 0:00:06]}  Nf3# {[%clk 0:00:31]} 0-1


[Site "https://www.chess.com"]

[Event "Titled Tuesday Blitz August 1 Late 2023"]
[White "Rasulov, Vugar"]
[Black "Womacka, Mathias"]
[WhiteFideId "13402390"]
[BlackFideId "4611390"]
[WhiteElo "2828"]
[BlackElo "2543"]
[Result "1/2-1/2"]
[Round "5"]
[TimeControl "180+1"]
[Date "2023.08.01"]
[WhiteClock "0:00:09"]
[BlackClock "0:00:06"]
[Board "50"]

1. d4 {[%clk 0:03:00]}  Nf6 {[%clk 0:02:58]} 2. Bg5 {[%clk 0:03:01]}  Ne4 {[%clk 0:02:58]} 3. Bf4 {[%clk 0:03:01]}  c5 {[%clk 0:02:57]} 4. f3 {[%clk 0:03:00]}  Qa5+ {[%clk 0:02:56]} 5. c3 {[%clk 0:03:00]}  Nf6 {[%clk 0:02:56]} 6. Nd2 {[%clk 0:02:58]}  cxd4 {[%clk 0:02:55]} 7. Nb3 {[%clk 0:02:58]}  Qd8 {[%clk 0:02:53]} 8. cxd4 {[%clk 0:02:57]}  e6 {[%clk 0:02:53]} 9. e4 {[%clk 0:02:54]}  Nc6 {[%clk 0:02:46]} 10. Ne2 {[%clk 0:02:48]}  d5 {[%clk 0:02:38]} 11. e5 {[%clk 0:02:45]}  Nd7 {[%clk 0:02:35]} 12. Be3 {[%clk 0:02:42]}  a5 {[%clk 0:02:25]} 13. a3 {[%clk 0:02:37]}  a4 {[%clk 0:02:18]} 14. Nbc1 {[%clk 0:02:29]}  Nb6 {[%clk 0:02:17]} 15. Nc3 {[%clk 0:02:28]}  Bd7 {[%clk 0:02:14]} 16. Bd3 {[%clk 0:02:01]}  Na5 {[%clk 0:02:13]} 17. O-O {[%clk 0:02:02]}  Nac4 {[%clk 0:02:06]} 18. Qe2 {[%clk 0:02:01]}  Be7 {[%clk 0:02:02]} 19. f4 {[%clk 0:01:58]}  g6 {[%clk 0:01:54]} 20. Bf2 {[%clk 0:01:49]}  Qc7 {[%clk 0:01:26]} 21. N1a2 {[%clk 0:01:33]}  O-O-O {[%clk 0:01:17]} 22. Rac1 {[%clk 0:01:33]}  Kb8 {[%clk 0:01:18]} 23. Rc2 {[%clk 0:01:30]}  f6 {[%clk 0:01:16]} 24. Rfc1 {[%clk 0:01:29]}  fxe5 {[%clk 0:01:15]} 25. dxe5 {[%clk 0:01:24]}  Bc5 {[%clk 0:01:13]} 26. Nb4 {[%clk 0:01:17]}  g5 {[%clk 0:01:01]} 27. fxg5 {[%clk 0:01:08]}  Bxf2+ {[%clk 0:00:55]} 28. Qxf2 {[%clk 0:01:09]}  Qxe5 {[%clk 0:00:54]} 29. h4 {[%clk 0:00:28]}  Rhf8 {[%clk 0:00:47]} 30. Qe1 {[%clk 0:00:28]}  Qd4+ {[%clk 0:00:43]} 31. Kh2 {[%clk 0:00:28]}  Ne3 {[%clk 0:00:40]} 32. Ne2 {[%clk 0:00:16]}  Nxc2 {[%clk 0:00:33]} 33. Nxd4 {[%clk 0:00:13]}  Nxe1 {[%clk 0:00:33]} 34. Rxe1 {[%clk 0:00:14]}  Rf2 {[%clk 0:00:29]} 35. Kg3 {[%clk 0:00:09]}  Rxb2 {[%clk 0:00:29]} 36. Bxh7 {[%clk 0:00:10]}  Nc4 {[%clk 0:00:24]} 37. g6 {[%clk 0:00:11]}  Nxa3 {[%clk 0:00:23]} 38. Nd3 {[%clk 0:00:10]}  Rd2 {[%clk 0:00:22]} 39. g7 {[%clk 0:00:11]}  Nc4 {[%clk 0:00:19]} 40. Nxe6 {[%clk 0:00:10]}  Bxe6 {[%clk 0:00:18]} 41. Rxe6 {[%clk 0:00:11]}  a3 {[%clk 0:00:14]} 42. Nb4 {[%clk 0:00:11]}  a2 {[%clk 0:00:14]} 43. Nxa2 {[%clk 0:00:11]}  Rxa2 {[%clk 0:00:15]} 44. Rf6 {[%clk 0:00:12]}  Ra3+ {[%clk 0:00:12]} 45. Kf4 {[%clk 0:00:08]}  Kc7 {[%clk 0:00:12]} 46. Rf7+ {[%clk 0:00:07]}  Kd6 {[%clk 0:00:12]} 47. Rf8 {[%clk 0:00:08]}  Raa8 {[%clk 0:00:11]} 48. Rxd8+ {[%clk 0:00:07]}  Rxd8 {[%clk 0:00:10]} 49. h5 {[%clk 0:00:08]}  b5 {[%clk 0:00:09]} 50. h6 {[%clk 0:00:07]}  Ne5 {[%clk 0:00:09]} 51. g8=Q {[%clk 0:00:06]}  Rxg8 {[%clk 0:00:08]} 52. Bxg8 {[%clk 0:00:07]}  b4 {[%clk 0:00:09]} 53. h7 {[%clk 0:00:08]}  Ng6+ {[%clk 0:00:08]} 54. Kg5 {[%clk 0:00:08]}  Nh8 {[%clk 0:00:08]} 55. Kf6 {[%clk 0:00:05]}  b3 {[%clk 0:00:08]} 56. Kg7 {[%clk 0:00:05]}  b2 {[%clk 0:00:09]} 57. Kxh8 {[%clk 0:00:05]}  b1=Q {[%clk 0:00:09]} 58. Bf7 {[%clk 0:00:05]}  Qb2+ {[%clk 0:00:08]} 59. Kg8 {[%clk 0:00:05]}  Qxg2+ {[%clk 0:00:08]} 60. Kf8 {[%clk 0:00:06]}  Qh3 {[%clk 0:00:08]} 61. Kg7 {[%clk 0:00:06]}  Qg4+ {[%clk 0:00:07]} 62. Bg6 {[%clk 0:00:06]}  Qd4+ {[%clk 0:00:07]} 63. Kg8 {[%clk 0:00:07]}  Qh4 {[%clk 0:00:06]} 64. h8=Q {[%clk 0:00:05]}  Qxh8+ {[%clk 0:00:07]} 65. Kxh8 {[%clk 0:00:06]}  d4 {[%clk 0:00:07]} 66. Kg7 {[%clk 0:00:07]}  d3 {[%clk 0:00:07]} 67. Kf6 {[%clk 0:00:07]}  d2 {[%clk 0:00:06]} 68. Bc2 {[%clk 0:00:08]}  d1=Q {[%clk 0:00:06]} 69. Bxd1 {[%clk 0:00:09]} 1/2-1/2


[Site "https://www.chess.com"]

[Event "Titled Tuesday Blitz August 1 Late 2023"]
[White "Moral Garcia, Serafin"]
[Black "Fantastic_Power"]
[WhiteFideId "2201925"]
[WhiteElo "2536"]
[BlackElo "2763"]
[Result "1/2-1/2"]
[Round "5"]
[TimeControl "180+1"]
[Date "2023.08.01"]
[WhiteClock "0:00:14"]
[BlackClock "0:00:06"]
[Board "51"]

1. e4 {[%clk 0:02:51]}  c5 {[%clk 0:02:59]} 2. Nf3 {[%clk 0:02:51]}  Nf6 {[%clk 0:03:00]} 3. e5 {[%clk 0:02:51]}  Nd5 {[%clk 0:03:00]} 4. Nc3 {[%clk 0:02:51]}  e6 {[%clk 0:02:59]} 5. Nxd5 {[%clk 0:02:50]}  exd5 {[%clk 0:03:00]} 6. d4 {[%clk 0:02:51]}  Nc6 {[%clk 0:03:01]} 7. c3 {[%clk 0:02:49]}  d6 {[%clk 0:02:59]} 8. exd6 {[%clk 0:02:49]}  Bxd6 {[%clk 0:02:58]} 9. dxc5 {[%clk 0:02:49]}  Bxc5 {[%clk 0:02:58]} 10. Bb5 {[%clk 0:02:49]}  O-O {[%clk 0:02:58]} 11. O-O {[%clk 0:02:48]}  Bg4 {[%clk 0:02:57]} 12. Re1 {[%clk 0:02:47]}  Qb6 {[%clk 0:02:44]} 13. Qe2 {[%clk 0:02:03]}  Bxf3 {[%clk 0:02:35]} 14. gxf3 {[%clk 0:02:02]}  Bxf2+ {[%clk 0:02:35]} 15. Qxf2 {[%clk 0:02:02]}  Qxb5 {[%clk 0:02:35]} 16. Be3 {[%clk 0:01:47]}  Rfe8 {[%clk 0:02:35]} 17. Kh1 {[%clk 0:01:47]}  Qd3 {[%clk 0:02:26]} 18. Rad1 {[%clk 0:01:44]}  Qf5 {[%clk 0:02:26]} 19. Qg3 {[%clk 0:01:40]}  Rad8 {[%clk 0:02:20]} 20. Qg4 {[%clk 0:01:36]}  Qxg4 {[%clk 0:02:04]} 21. fxg4 {[%clk 0:01:36]}  Re4 {[%clk 0:02:05]} 22. h3 {[%clk 0:01:29]}  Rde8 {[%clk 0:02:04]} 23. Bf2 {[%clk 0:01:28]}  Rxe1+ {[%clk 0:02:03]} 24. Rxe1 {[%clk 0:01:28]}  Rxe1+ {[%clk 0:02:02]} 25. Bxe1 {[%clk 0:01:29]}  f6 {[%clk 0:01:59]} 26. Kg2 {[%clk 0:01:29]}  Ne5 {[%clk 0:01:59]} 27. b3 {[%clk 0:01:26]}  Kf7 {[%clk 0:01:58]} 28. Bf2 {[%clk 0:01:23]}  a6 {[%clk 0:01:57]} 29. Bd4 {[%clk 0:01:20]}  Ke6 {[%clk 0:01:57]} 30. Kg3 {[%clk 0:01:18]}  Nc6 {[%clk 0:01:52]} 31. Be3 {[%clk 0:01:18]}  Ke5 {[%clk 0:01:52]} 32. Kf3 {[%clk 0:01:15]}  d4 {[%clk 0:01:52]} 33. Bf4+ {[%clk 0:01:12]}  Kd5 {[%clk 0:01:51]} 34. c4+ {[%clk 0:01:09]}  Kc5 {[%clk 0:01:50]} 35. Bc1 {[%clk 0:01:08]}  Kb4 {[%clk 0:01:36]} 36. Bb2 {[%clk 0:01:07]}  b5 {[%clk 0:01:29]} 37. cxb5 {[%clk 0:01:04]}  axb5 {[%clk 0:01:29]} 38. Ke4 {[%clk 0:01:04]}  Kc5 {[%clk 0:01:29]} 39. a3 {[%clk 0:00:59]}  g6 {[%clk 0:01:22]} 40. h4 {[%clk 0:00:47]}  h5 {[%clk 0:01:00]} 41. gxh5 {[%clk 0:00:44]}  gxh5 {[%clk 0:01:00]} 42. Kf5 {[%clk 0:00:41]}  d3 {[%clk 0:00:58]} 43. Bc3 {[%clk 0:00:40]}  Kd5 {[%clk 0:00:23]} 44. Kxf6 {[%clk 0:00:38]}  Nd4 {[%clk 0:00:12]} 45. Kg5 {[%clk 0:00:36]}  Nxb3 {[%clk 0:00:09]} 46. Kxh5 {[%clk 0:00:37]}  d2 {[%clk 0:00:07]} 47. Bxd2 {[%clk 0:00:36]}  Nxd2 {[%clk 0:00:08]} 48. Kg6 {[%clk 0:00:31]}  Ke6 {[%clk 0:00:04]} 49. h5 {[%clk 0:00:29]}  Nc4 {[%clk 0:00:03]} 50. h6 {[%clk 0:00:27]}  Ne5+ {[%clk 0:00:02]} 51. Kg7 {[%clk 0:00:26]}  Nf7 {[%clk 0:00:01]} 52. h7 {[%clk 0:00:25]}  Ke7 {[%clk 0:00:01]} 53. Kg8 {[%clk 0:00:24]}  Kf6 {[%clk 0:00:01]} 54. Kf8 {[%clk 0:00:20]}  Kg6 {[%clk 0:00:01]} 55. Kg8 {[%clk 0:00:19]}  Kf6 {[%clk 0:00:01]} 56. Kf8 {[%clk 0:00:18]}  Kg6 {[%clk 0:00:02]} 57. Kg8 {[%clk 0:00:17]}  Nh8 {[%clk 0:00:02]} 58. Kf8 {[%clk 0:00:11]}  Kxh7 {[%clk 0:00:02]} 59. Ke7 {[%clk 0:00:11]}  Ng6+ {[%clk 0:00:03]} 60. Kd6 {[%clk 0:00:11]}  Nf4 {[%clk 0:00:02]} 61. Kc5 {[%clk 0:00:12]}  Kg6 {[%clk 0:00:03]} 62. Kxb5 {[%clk 0:00:12]}  Kf6 {[%clk 0:00:03]} 63. a4 {[%clk 0:00:12]}  Ke7 {[%clk 0:00:04]} 64. Kb6 {[%clk 0:00:13]}  Kd7 {[%clk 0:00:04]} 65. Kb7 {[%clk 0:00:13]}  Nd5 {[%clk 0:00:05]} 66. a5 {[%clk 0:00:14]}  Nb4 {[%clk 0:00:05]} 67. a6 {[%clk 0:00:14]}  Nxa6 {[%clk 0:00:06]} 1/2-1/2


[Site "https://www.chess.com"]

[Event "Titled Tuesday Blitz August 1 Late 2023"]
[White "Mekhitarian, Krikor Sevag"]
[Black "Rottenwohrer Suarez, Juan"]
[WhiteFideId "2107660"]
[BlackFideId "32068182"]
[WhiteElo "2759"]
[BlackElo "2518"]
[Result "1-0"]
[Round "5"]
[TimeControl "180+1"]
[Date "2023.08.01"]
[WhiteClock "0:01:44"]
[BlackClock "0:00:03"]
[Board "52"]

1. Nf3 {[%clk 0:03:00]}  d5 {[%clk 0:02:56]} 2. c4 {[%clk 0:03:01]}  d4 {[%clk 0:02:48]} 3. b4 {[%clk 0:03:00]}  f6 {[%clk 0:02:34]} 4. Na3 {[%clk 0:03:00]}  e5 {[%clk 0:02:34]} 5. Nc2 {[%clk 0:03:00]}  c5 {[%clk 0:02:33]} 6. bxc5 {[%clk 0:02:59]}  Bxc5 {[%clk 0:02:30]} 7. d3 {[%clk 0:02:59]}  Ne7 {[%clk 0:02:20]} 8. g3 {[%clk 0:02:59]}  Nbc6 {[%clk 0:02:21]} 9. Bg2 {[%clk 0:03:00]}  O-O {[%clk 0:02:21]} 10. O-O {[%clk 0:03:01]}  Be6 {[%clk 0:02:22]} 11. Rb1 {[%clk 0:03:01]}  b6 {[%clk 0:02:21]} 12. Nd2 {[%clk 0:03:02]}  Rc8 {[%clk 0:02:20]} 13. Ne4 {[%clk 0:03:00]}  h6 {[%clk 0:02:15]} 14. Nxc5 {[%clk 0:02:58]}  bxc5 {[%clk 0:02:15]} 15. Ba3 {[%clk 0:02:58]}  Nb8 {[%clk 0:01:51]} 16. Qd2 {[%clk 0:02:50]}  Nd7 {[%clk 0:01:48]} 17. Rb7 {[%clk 0:02:48]}  Rc7 {[%clk 0:01:47]} 18. Rfb1 {[%clk 0:02:47]}  Rxb7 {[%clk 0:01:44]} 19. Rxb7 {[%clk 0:02:48]}  Nc8 {[%clk 0:01:14]} 20. Na1 {[%clk 0:02:27]}  e4 {[%clk 0:00:46]} 21. Nb3 {[%clk 0:02:16]}  f5 {[%clk 0:00:11]} 22. Nxc5 {[%clk 0:01:55]}  Nxc5 {[%clk 0:00:11]} 23. Bxc5 {[%clk 0:01:56]}  Nd6 {[%clk 0:00:09]} 24. Rxa7 {[%clk 0:01:52]}  Qb8 {[%clk 0:00:07]} 25. Bxd4 {[%clk 0:01:46]}  Rd8 {[%clk 0:00:03]} 26. Rxg7+ {[%clk 0:01:44]} 1-0


[Site "https://www.chess.com"]

[Event "Titled Tuesday Blitz August 1 Late 2023"]
[White "NigelDwarf"]
[Black "Golubka, Petro"]
[BlackFideId "14114224"]
[WhiteElo "2518"]
[BlackElo "2719"]
[Result "0-1"]
[Round "5"]
[TimeControl "180+1"]
[Date "2023.08.01"]
[WhiteClock "0:00:04"]
[BlackClock "0:00:11"]
[Board "53"]

1. Nf3 {[%clk 0:03:00]}  b6 {[%clk 0:02:49]} 2. c4 {[%clk 0:02:57]}  Bb7 {[%clk 0:02:49]} 3. Nc3 {[%clk 0:02:57]}  e6 {[%clk 0:02:50]} 4. e4 {[%clk 0:02:56]}  Bb4 {[%clk 0:02:49]} 5. Qc2 {[%clk 0:02:53]}  Bxc3 {[%clk 0:02:48]} 6. bxc3 {[%clk 0:02:49]}  Nc6 {[%clk 0:02:41]} 7. d4 {[%clk 0:02:48]}  Na5 {[%clk 0:02:41]} 8. h4 {[%clk 0:02:28]}  h6 {[%clk 0:02:41]} 9. Rh3 {[%clk 0:02:25]}  Nf6 {[%clk 0:02:39]} 10. e5 {[%clk 0:02:21]}  Ne4 {[%clk 0:02:37]} 11. Bd3 {[%clk 0:02:19]}  d5 {[%clk 0:02:35]} 12. exd6 {[%clk 0:02:01]}  Nxd6 {[%clk 0:02:34]} 13. Rg3 {[%clk 0:02:01]}  Bxf3 {[%clk 0:02:26]} 14. gxf3 {[%clk 0:01:56]}  Qxh4 {[%clk 0:02:25]} 15. c5 {[%clk 0:01:39]}  Ndb7 {[%clk 0:02:17]} 16. Rxg7 {[%clk 0:01:15]}  Qf6 {[%clk 0:02:06]} 17. Rg3 {[%clk 0:01:07]}  O-O-O {[%clk 0:02:04]} 18. Be3 {[%clk 0:00:58]}  bxc5 {[%clk 0:02:00]} 19. Rb1 {[%clk 0:00:54]}  c4 {[%clk 0:01:34]} 20. Be4 {[%clk 0:00:50]}  Rd6 {[%clk 0:01:35]} 21. Ke2 {[%clk 0:00:18]}  Rb6 {[%clk 0:01:32]} 22. Rgg1 {[%clk 0:00:18]}  Kb8 {[%clk 0:01:25]} 23. Qa4 {[%clk 0:00:18]}  Qe7 {[%clk 0:01:21]} 24. d5 {[%clk 0:00:17]}  exd5 {[%clk 0:01:20]} 25. Bxb6 {[%clk 0:00:15]}  axb6 {[%clk 0:01:21]} 26. Qb4 {[%clk 0:00:12]}  Qe6 {[%clk 0:01:16]} 27. Rg4 {[%clk 0:00:09]}  f5 {[%clk 0:01:14]} 28. Rf4 {[%clk 0:00:09]}  fxe4 {[%clk 0:01:08]} 29. fxe4 {[%clk 0:00:10]}  Qe5 {[%clk 0:01:06]} 30. Rf8+ {[%clk 0:00:08]}  Rxf8 {[%clk 0:01:05]} 31. Qxf8+ {[%clk 0:00:09]}  Ka7 {[%clk 0:01:06]} 32. Kf1 {[%clk 0:00:07]}  Qxe4 {[%clk 0:01:04]} 33. Re1 {[%clk 0:00:06]}  Qd3+ {[%clk 0:01:04]} 34. Kg2 {[%clk 0:00:06]}  Qg6+ {[%clk 0:00:59]} 35. Kf1 {[%clk 0:00:05]}  Nd6 {[%clk 0:00:29]} 36. Re7 {[%clk 0:00:05]}  Nab7 {[%clk 0:00:17]} 37. Rxc7 {[%clk 0:00:03]}  h5 {[%clk 0:00:17]} 38. Qe7 {[%clk 0:00:03]}  Ka6 {[%clk 0:00:14]} 39. Rc6 {[%clk 0:00:02]}  Qd3+ {[%clk 0:00:13]} 40. Kg2 {[%clk 0:00:03]}  Qxc3 {[%clk 0:00:14]} 41. Qc7 {[%clk 0:00:03]}  Qd4 {[%clk 0:00:14]} 42. Rxd6 {[%clk 0:00:03]}  Nxd6 {[%clk 0:00:14]} 43. Qxd6 {[%clk 0:00:03]}  c3 {[%clk 0:00:14]} 44. Qc6 {[%clk 0:00:03]}  Qc4 {[%clk 0:00:14]} 45. Qa8+ {[%clk 0:00:04]}  Kb5 {[%clk 0:00:14]} 46. Qe8+ {[%clk 0:00:04]}  Kb4 {[%clk 0:00:14]} 47. Qe7+ {[%clk 0:00:05]}  Qc5 {[%clk 0:00:15]} 48. Qe1 {[%clk 0:00:04]}  d4 {[%clk 0:00:15]} 49. Qb1+ {[%clk 0:00:04]}  Ka5 {[%clk 0:00:15]} 50. Qc2 {[%clk 0:00:04]}  Qc4 {[%clk 0:00:15]} 51. Qf5+ {[%clk 0:00:04]}  Kb4 {[%clk 0:00:15]} 52. Qb1+ {[%clk 0:00:04]}  Ka5 {[%clk 0:00:13]} 53. Qf5+ {[%clk 0:00:04]}  Qc5 {[%clk 0:00:14]} 54. Qc2 {[%clk 0:00:04]}  b5 {[%clk 0:00:14]} 55. Qh7 {[%clk 0:00:03]}  c2 {[%clk 0:00:13]} 56. Qg8 {[%clk 0:00:04]}  c1=Q {[%clk 0:00:12]} 57. Qa8+ {[%clk 0:00:04]}  Kb4 {[%clk 0:00:13]} 58. a3+ {[%clk 0:00:04]}  Kb3 {[%clk 0:00:13]} 59. Qg8+ {[%clk 0:00:04]}  Q1c4 {[%clk 0:00:13]} 60. Qg3+ {[%clk 0:00:04]}  d3 {[%clk 0:00:11]} 0-1


[Site "https://www.chess.com"]

[Event "Titled Tuesday Blitz August 1 Late 2023"]
[White "Fiorito, Joaquin"]
[Black "Bochnicka, Vladimir"]
[WhiteFideId "180173"]
[BlackFideId "14943450"]
[WhiteElo "2695"]
[BlackElo "2503"]
[Result "0-1"]
[Round "5"]
[TimeControl "180+1"]
[Date "2023.08.01"]
[WhiteClock "0:00:07"]
[BlackClock "0:00:06"]
[Board "54"]

1. d4 {[%clk 0:03:00]}  Nf6 {[%clk 0:02:54]} 2. Nc3 {[%clk 0:03:01]}  g6 {[%clk 0:02:55]} 3. e4 {[%clk 0:03:01]}  d6 {[%clk 0:02:55]} 4. Be3 {[%clk 0:03:01]}  Bg7 {[%clk 0:02:54]} 5. Qd2 {[%clk 0:03:01]}  c6 {[%clk 0:02:44]} 6. Bh6 {[%clk 0:03:01]}  Bxh6 {[%clk 0:02:39]} 7. Qxh6 {[%clk 0:03:02]}  Qa5 {[%clk 0:02:38]} 8. Bd3 {[%clk 0:03:02]}  Nbd7 {[%clk 0:02:24]} 9. Nf3 {[%clk 0:03:02]}  e5 {[%clk 0:02:14]} 10. O-O {[%clk 0:02:59]}  exd4 {[%clk 0:02:05]} 11. Nxd4 {[%clk 0:03:00]}  Qh5 {[%clk 0:02:00]} 12. Qxh5 {[%clk 0:02:57]}  Nxh5 {[%clk 0:02:00]} 13. f4 {[%clk 0:02:52]}  O-O {[%clk 0:01:52]} 14. Rae1 {[%clk 0:02:45]}  Re8 {[%clk 0:01:41]} 15. a4 {[%clk 0:02:41]}  a5 {[%clk 0:01:37]} 16. Bc4 {[%clk 0:02:41]}  Nc5 {[%clk 0:01:29]} 17. f5 {[%clk 0:02:24]}  Rf8 {[%clk 0:00:42]} 18. g4 {[%clk 0:02:12]}  Ng7 {[%clk 0:00:37]} 19. h3 {[%clk 0:02:06]}  Bd7 {[%clk 0:00:36]} 20. Nf3 {[%clk 0:02:04]}  Rae8 {[%clk 0:00:32]} 21. Kg2 {[%clk 0:01:49]}  Bc8 {[%clk 0:00:23]} 22. h4 {[%clk 0:01:45]}  h5 {[%clk 0:00:23]} 23. fxg6 {[%clk 0:01:43]}  Be6 {[%clk 0:00:23]} 24. gxf7+ {[%clk 0:01:40]}  Rxf7 {[%clk 0:00:23]} 25. Bxe6 {[%clk 0:01:37]}  Ngxe6 {[%clk 0:00:20]} 26. gxh5 {[%clk 0:01:28]}  Nf4+ {[%clk 0:00:20]} 27. Kh2 {[%clk 0:01:28]}  Nxh5 {[%clk 0:00:16]} 28. Ng5 {[%clk 0:01:28]}  Rxf1 {[%clk 0:00:14]} 29. Rxf1 {[%clk 0:01:29]}  Rf8 {[%clk 0:00:12]} 30. Rxf8+ {[%clk 0:01:12]}  Kxf8 {[%clk 0:00:13]} 31. Kg2 {[%clk 0:01:12]}  Ke7 {[%clk 0:00:13]} 32. Kf3 {[%clk 0:01:12]}  Nd7 {[%clk 0:00:10]} 33. Kg4 {[%clk 0:01:09]}  Ng7 {[%clk 0:00:10]} 34. h5 {[%clk 0:01:02]}  Nf6+ {[%clk 0:00:10]} 35. Kh4 {[%clk 0:00:59]}  Nfxh5 {[%clk 0:00:10]} 36. Nf3 {[%clk 0:00:54]}  Nf6 {[%clk 0:00:09]} 37. Kg5 {[%clk 0:00:52]}  Ne6+ {[%clk 0:00:07]} 38. Kf5 {[%clk 0:00:53]}  Nd7 {[%clk 0:00:05]} 39. b3 {[%clk 0:00:50]}  Ndc5 {[%clk 0:00:05]} 40. Nh4 {[%clk 0:00:41]}  Nd4+ {[%clk 0:00:05]} 41. Kg6 {[%clk 0:00:40]}  Nxc2 {[%clk 0:00:05]} 42. Nf5+ {[%clk 0:00:37]}  Ke6 {[%clk 0:00:05]} 43. Ng7+ {[%clk 0:00:34]}  Ke5 {[%clk 0:00:05]} 44. Ne8 {[%clk 0:00:34]}  Nxb3 {[%clk 0:00:05]} 45. Kf7 {[%clk 0:00:33]}  Nc5 {[%clk 0:00:05]} 46. Ke7 {[%clk 0:00:33]}  d5 {[%clk 0:00:06]} 47. exd5 {[%clk 0:00:33]}  cxd5 {[%clk 0:00:07]} 48. Kd8 {[%clk 0:00:25]}  d4 {[%clk 0:00:07]} 49. Nd1 {[%clk 0:00:26]}  Ne3 {[%clk 0:00:06]} 50. Nb2 {[%clk 0:00:25]}  d3 {[%clk 0:00:06]} 51. Kc7 {[%clk 0:00:25]}  d2 {[%clk 0:00:06]} 52. Kb6 {[%clk 0:00:26]}  Kd4 {[%clk 0:00:06]} 53. Kxa5 {[%clk 0:00:24]}  Nc4+ {[%clk 0:00:07]} 54. Nxc4 {[%clk 0:00:21]}  Kxc4 {[%clk 0:00:07]} 55. Nd6+ {[%clk 0:00:20]}  Kd5 {[%clk 0:00:08]} 56. Nf5 {[%clk 0:00:19]}  Ke4 {[%clk 0:00:06]} 57. Nd6+ {[%clk 0:00:14]}  Kd3 {[%clk 0:00:07]} 58. Kb5 {[%clk 0:00:13]}  Ne4 {[%clk 0:00:05]} 59. Nxe4 {[%clk 0:00:07]}  Kxe4 {[%clk 0:00:05]} 60. Kb6 {[%clk 0:00:08]}  d1=Q {[%clk 0:00:06]} 61. a5 {[%clk 0:00:09]}  Qb3+ {[%clk 0:00:06]} 62. Ka7 {[%clk 0:00:07]}  Qb5 {[%clk 0:00:06]} 0-1


[Site "https://www.chess.com"]

[Event "Titled Tuesday Blitz August 1 Late 2023"]
[White "Manukyan, Sargis A."]
[Black "Manukian, Artak"]
[WhiteFideId "13303970"]
[BlackFideId "13301373"]
[WhiteElo "2649"]
[BlackElo "2485"]
[Result "1-0"]
[Round "5"]
[TimeControl "180+1"]
[Date "2023.08.01"]
[WhiteClock "0:00:50"]
[BlackClock "0:00:04"]
[Board "55"]

1. d4 {[%clk 0:03:00]}  d5 {[%clk 0:02:59]} 2. c4 {[%clk 0:03:01]}  dxc4 {[%clk 0:03:00]} 3. e4 {[%clk 0:02:59]}  Nf6 {[%clk 0:02:58]} 4. e5 {[%clk 0:02:59]}  Nd5 {[%clk 0:02:59]} 5. Bxc4 {[%clk 0:02:59]}  Nb6 {[%clk 0:02:59]} 6. Bb3 {[%clk 0:02:59]}  Bf5 {[%clk 0:02:59]} 7. Nc3 {[%clk 0:02:59]}  e6 {[%clk 0:02:59]} 8. Nge2 {[%clk 0:02:59]}  Nc6 {[%clk 0:02:58]} 9. O-O {[%clk 0:02:57]}  Be7 {[%clk 0:02:52]} 10. Be3 {[%clk 0:02:56]}  O-O {[%clk 0:02:46]} 11. f3 {[%clk 0:02:53]}  h6 {[%clk 0:02:37]} 12. Ng3 {[%clk 0:02:53]}  Bh7 {[%clk 0:02:37]} 13. f4 {[%clk 0:02:46]}  Bh4 {[%clk 0:02:10]} 14. Nh5 {[%clk 0:02:19]}  Kh8 {[%clk 0:01:54]} 15. Qg4 {[%clk 0:01:47]}  Rg8 {[%clk 0:01:53]} 16. Rad1 {[%clk 0:01:48]}  Na5 {[%clk 0:01:38]} 17. d5 {[%clk 0:01:24]}  exd5 {[%clk 0:01:01]} 18. Bxd5 {[%clk 0:01:19]}  Nxd5 {[%clk 0:00:54]} 19. Rxd5 {[%clk 0:01:19]}  Nc4 {[%clk 0:00:34]} 20. Rxd8 {[%clk 0:01:17]}  Bxd8 {[%clk 0:00:34]} 21. Bc1 {[%clk 0:01:11]}  c6 {[%clk 0:00:30]} 22. b3 {[%clk 0:01:08]}  Bb6+ {[%clk 0:00:29]} 23. Kh1 {[%clk 0:01:08]}  Ne3 {[%clk 0:00:30]} 24. Bxe3 {[%clk 0:01:08]}  Bxe3 {[%clk 0:00:31]} 25. f5 {[%clk 0:01:09]}  Rae8 {[%clk 0:00:27]} 26. e6 {[%clk 0:01:01]}  fxe6 {[%clk 0:00:24]} 27. fxe6 {[%clk 0:01:01]}  Bg5 {[%clk 0:00:20]} 28. h4 {[%clk 0:01:00]}  Be7 {[%clk 0:00:19]} 29. Ne4 {[%clk 0:00:59]}  Ref8 {[%clk 0:00:14]} 30. Rxf8 {[%clk 0:00:59]}  Bxf8 {[%clk 0:00:15]} 31. Neg3 {[%clk 0:00:57]}  Bd6 {[%clk 0:00:14]} 32. Nf4 {[%clk 0:00:56]}  Rf8 {[%clk 0:00:12]} 33. Ngh5 {[%clk 0:00:56]}  Be5 {[%clk 0:00:11]} 34. e7 {[%clk 0:00:54]}  Re8 {[%clk 0:00:04]} 35. Qd7 {[%clk 0:00:50]} 1-0


[Site "https://www.chess.com"]